fUSD/lending_fUSD_20240329
["ID","MTS","AMOUNT","RATE_DAILY","PERIOD"]
[320965958,1711722688791,-247.877888,0.00065,120]
[320965959,1711722688800,-247.877888,0.00065,120]
[320965960,1711722688809,-325.814409,0.00065,60]
[320965961,1711722688819,-325.814409,0.00065,60]
[320965962,1711722688829,-151.0,0.00065,120]
[320965963,1711722688838,-242.931224,0.00065,120]
[320965964,1711722688848,-242.931224,0.00065,120]
[320965965,1711722688857,-163.082028,0.00065,30]
[320965966,1711722688867,-151.0,0.00065,120]
[320965967,1711722688876,-163.082028,0.00065,30]
[320965968,1711722688885,-151.0,0.00065,120]
[320965969,1711722688895,-151.0,0.00065,120]
[320965970,1711722688905,-151.0,0.00065,120]
[320965971,1711722688915,-151.0,0.00065,120]
[320965972,1711722688925,-151.0,0.00065,120]
[320965973,1711722688934,-151.0,0.00065,120]
[320965974,1711722688943,-151.0,0.00065,120]
[320965975,1711722688953,-151.0,0.00065,120]
[320965976,1711722688962,-150.0,0.00065,16]
[320965977,1711722688972,-150.0,0.00065,16]
[320965978,1711722688982,-157.01035357,0.00065,120]
[320965979,1711722688991,-705.82843,0.00065,120]
[320965980,1711722689001,-151.0,0.00065,120]
[320965981,1711722689011,-705.82843,0.00065,120]
[320965982,1711722689021,-151.0,0.00065,120]
[320965983,1711722689031,-151.0,0.00065,120]
[320965984,1711722689040,-151.0,0.00065,120]
[320965985,1711722689050,-151.0,0.00065,120]
[320965986,1711722689060,-151.0,0.00065,120]
[320965987,1711722689071,-501.168452,0.00065,120]
[320965988,1711722689081,-155.819567,0.00065,120]
[320965989,1711722689091,-501.168452,0.00065,120]
[320965990,1711722689100,-151.0,0.00065,120]
[320965991,1711722689111,-151.0,0.00065,120]
[320965992,1711722689121,-151.0,0.00065,120]
[320965993,1711722689130,-151.0,0.00065,120]
[320965994,1711722689140,-151.0,0.00065,120]
[320965995,1711722689150,-151.0,0.00065,120]
[320965996,1711722689162,-151.0,0.00065,120]
[320965997,1711722689171,-151.0,0.00065,120]
[320965998,1711722689181,-151.0,0.00065,120]
[320965999,1711722689190,-238.688377,0.00065,120]
[320966000,1711722689199,-151.0,0.00065,120]
[320966001,1711722689209,-238.688377,0.00065,120]
[320966002,1711722689218,-174.961087,0.00065,120]
[320966003,1711722689228,-151.0,0.00065,7]
[320966004,1711722689238,-151.0,0.00065,120]
[320966005,1711722689248,-151.0,0.00065,120]
[320966006,1711722689258,-228.445746,0.00065,120]
[320966007,1711722689268,-152.417897,0.00065,120]
[320966008,1711722689277,-1401.06181,0.00065,120]
[320966009,1711722689287,-401.0,0.00065,120]
[320966010,1711722689296,-151.0,0.00065,120]
[320966011,1711722689306,-151.0,0.00065,120]
[320966012,1711722689316,-151.0,0.00065,30]
[320966013,1711722689326,-151.0,0.00065,120]
[320966014,1711722689335,-582.618186,0.00065,120]
[320966015,1711722689345,-150.0,0.00065001,120]
[320966016,1711722689355,-153.24174957,0.0006503,120]
[320966017,1711722689365,-157.69803797,0.00065045,120]
[320966018,1711722689374,-150.0,0.00065045,120]
[320966019,1711722689384,-150.0,0.00065076,30]
[320966020,1711722689393,-152.11703282,0.00065078,120]
[320966021,1711722689403,-150.72698386,0.00065095,101]
[320966022,1711722689412,-150.0,0.00065104,30]
[320966023,1711722689421,-150.0,0.0006511,30]
[320966024,1711722689431,-150.0,0.00065117,30]
[320966025,1711722689441,-150.0,0.00065156,120]
[320966026,1711722689450,-150.0,0.00065171,30]
[320966027,1711722689460,-150.0,0.0006519,30]
[320966028,1711722689469,-150.0,0.00065202,30]
[320966029,1711722689478,-150.0,0.00065207,30]
[320966030,1711722689488,-150.0,0.00065219,30]
[320966031,1711722689498,-150.0,0.00065225,30]
[320966032,1711722689507,-900.0,0.00065229,90]
[320966033,1711722689518,-170.0,0.0006523,98]
[320966034,1711722689528,-150.0,0.00065231,30]
[320966035,1711722689538,-152.11703282,0.00065256,120]
[320966036,1711722689547,-150.0,0.00065258,30]
[320966037,1711722689557,-150.0,0.00065267,120]
[320966038,1711722689567,-150.0,0.00065267,120]
[320966039,1711722689576,-698.31841545,0.00065267,120]
[320966040,1711722689586,-150.0,0.00065268,28]
[320966041,1711722689595,-1120.77280023,0.00065272,120]
[320966042,1711722689604,-150.0,0.00065284,30]
[320966043,1711722689613,-150.0,0.00065286,30]
[320966044,1711722689623,-150.0,0.00065297,30]
[320966045,1711722689632,-300.0,0.000653,120]
[320966046,1711722689643,-1017.0,0.000653,14]
[320966047,1711722689653,-1493.20975127,0.0006531,120]
[320966048,1711722689662,-154.87529194,0.00065346,120]
[320966049,1711722689672,-150.0,0.00065349,30]
[320966050,1711722689681,-150.0,0.0006537,30]
[320966051,1711722689692,-150.0,0.00065378,120]
[320966052,1711722689701,-152.402122,0.00065399,120]
[320966053,1711722689711,-401.0,0.000654,40]
[320966054,1711722689721,-153.88,0.00065425,120]
[320966055,1711722689731,-150.0,0.00065425,30]
[320966056,1711722689740,-150.0,0.00065433,30]
[320966057,1711722689749,-152.11703282,0.00065433,120]
[320966058,1711722689759,-150.0,0.0006544,30]
[320966059,1711722689768,-243.27777778,0.00065479,120]
[320966060,1711722689778,-592.32391892,0.00065488,120]
[320966061,1711722689788,-150.0,0.00065489,120]
[320966062,1711722689797,-24999.999999,0.000655,120]
[320966063,1711722689807,-18784.43851306,0.000655,120]
[320966064,1711722689816,-300.0,0.000655,43]
[320966065,1711722689826,-150.0,0.000655,16]
[320966066,1711722689835,-150.0,0.000655,16]
[320966067,1711722689845,-401.0,0.000655,120]
[320966068,1711722689855,-10923.98,0.00065507,120]
[320966069,1711722689865,-150.0,0.00065516,30]
[320966070,1711722689874,-150.0,0.0006552,30]
[320966071,1711722689884,-150.0,0.00065541,30]
[320966072,1711722689893,-152.41256319,0.0006557,120]
[320966073,1711722689903,-6000.0,0.00065585,120]
[320966074,1711722689912,-150.0,0.00065588,30]
[320966075,1711722689921,-3712.37049802,0.000656,60]
[320966076,1711722689932,-11778.74709487,0.000656,30]
[320966077,1711722689942,-150.0,0.000656,120]
[320966078,1711722689951,-150.0,0.00065607,30]
[320966079,1711722689960,-152.11703282,0.00065611,120]
[320966080,1711722689970,-150.0,0.00065612,30]
[320966081,1711722689979,-150.0,0.00065643,30]
[320966082,1711722689988,-150.0,0.0006566,30]
[320966083,1711722689998,-150.0,0.00065686,30]
[320966084,1711722690008,-150.0,0.0006569,30]
[320966085,1711722690017,-150.0,0.00065693,30]
[320966086,1711722690027,-150.0,0.00065695,30]
[320966087,1711722690036,-150.0,0.00065696,30]
[320966088,1711722690045,-300.0,0.000657,120]
[320966089,1711722690054,-150.0,0.00065706,30]
[320966090,1711722690067,-150.0,0.00065711,120]
[320966091,1711722690077,-150.0,0.00065715,30]
[320966092,1711722690086,-150.0,0.00065728,30]
[320966093,1711722690095,-1493.20975128,0.00065743,120]
[320966094,1711722690103,-500.0,0.00065753,120]
[320966095,1711722690113,-521.88360772,0.00065753,120]
[320966096,1711722690122,-1256.8,0.00065753,120]
[320966097,1711722690131,-1256.8,0.00065753,120]
[320966098,1711722690140,-1256.8,0.00065753,120]
[320966099,1711722690150,-1256.8,0.00065753,120]
[320966100,1711722690161,-1256.8,0.00065753,120]
[320966101,1711722690170,-1256.8,0.00065753,120]
[320966102,1711722690179,-1256.8,0.00065753,120]
[320966103,1711722690188,-1256.8,0.00065753,120]
[320966104,1711722690197,-1256.8,0.00065753,120]
[320966105,1711722690206,-1256.8,0.00065753,120]
[320966106,1711722690216,-1256.8,0.00065753,120]
[320966107,1711722690225,-1256.8,0.00065753,120]
[320966108,1711722690234,-1256.8,0.00065753,120]
[320966109,1711722690243,-1256.8,0.00065753,120]
[320966110,1711722690252,-1256.8,0.00065753,120]
[320966111,1711722690263,-1256.8,0.00065753,120]
[320966112,1711722690274,-1256.8,0.00065753,120]
[320966113,1711722690282,-1256.8,0.00065753,120]
[320966114,1711722690291,-1256.8,0.00065753,120]
[320966115,1711722690299,-1256.8,0.00065753,120]
[320966116,1711722690308,-531.53,0.00065753,120]
[320966117,1711722690318,-1256.8,0.00065753,120]
[320966118,1711722690327,-531.53,0.00065753,120]
[320966119,1711722690336,-531.53,0.00065753,120]
[320966120,1711722690345,-1256.8,0.00065753,120]
[320966121,1711722690354,-531.53,0.00065753,120]
[320966122,1711722690364,-1256.8,0.00065753,120]
[320966123,1711722690372,-531.53,0.00065753,120]
[320966124,1711722690382,-1256.95770746,0.00065753,120]
[320966125,1711722690391,-531.53,0.00065753,120]
[320966126,1711722690400,-531.53,0.00065753,120]
[320966127,1711722690409,-531.53,0.00065753,120]
[320966128,1711722690419,-531.53,0.00065753,120]
[320966129,1711722690428,-531.53,0.00065753,120]
[320966130,1711722690437,-531.53,0.00065753,120]
[320966131,1711722690446,-531.53,0.00065753,120]
[320966132,1711722690455,-531.53,0.00065753,120]
[320966133,1711722690464,-531.53,0.00065753,120]
[320966134,1711722690473,-531.53,0.00065753,120]
[320966135,1711722690482,-531.53,0.00065753,120]
[320966136,1711722690491,-531.53,0.00065753,120]
[320966137,1711722690500,-531.53,0.00065753,120]
[320966138,1711722690509,-531.53,0.00065753,120]
[320966139,1711722690520,-531.53,0.00065753,120]
[320966140,1711722690529,-531.53,0.00065753,120]
[320966141,1711722690538,-531.53,0.00065753,120]
[320966142,1711722690547,-531.53,0.00065753,120]
[320966143,1711722690556,-531.62040588,0.00065753,120]
[320966144,1711722690563,-1000.0,0.00065753,30]
[320966145,1711722690570,-12151.08,0.00065753,30]
[320966146,1711722690577,-150.0,0.00065754,60]
[320966147,1711722690585,-150.0,0.00065758,60]
[320966148,1711722690592,-150.0,0.00065764,60]
[320966149,1711722690598,-900.0,0.00065777,90]
[320966150,1711722690604,-150.0,0.00065781,60]
[320966151,1711722690611,-152.11703282,0.00065789,120]
[320966152,1711722690617,-150.0,0.0006581,60]
[320966153,1711722690623,-150.0,0.00065814,60]
[320966154,1711722690629,-154.0,0.00065818,25]
[320966155,1711722690637,-150.0,0.00065822,120]
[320966156,1711722690646,-150.0,0.00065831,60]
[320966157,1711722690652,-150.0,0.00065835,60]
[320966158,1711722690659,-150.0,0.00065862,60]
[320966159,1711722690665,-152.41256336,0.00065866,120]
[320966160,1711722690671,-150.0,0.00065873,60]
[320966161,1711722690678,-150.0,0.00065879,60]
[320966162,1711722690685,-221.0,0.000659,30]
[320966163,1711722690692,-401.0,0.000659,40]
[320966164,1711722690699,-708.0,0.000659,30]
[320966165,1711722690706,-150.0,0.00065915,60]
[320966166,1711722690712,-150.0,0.00065926,60]
[320966167,1711722690719,-150.0,0.00065928,60]
[320966168,1711722690726,-164.37842631,0.00065933,120]
[320966169,1711722690732,-150.0,0.00065933,120]
[320966170,1711722690740,-150.0,0.00065933,120]
[320966171,1711722690746,-500.0,0.00065934,120]
[320966172,1711722690752,-150.0,0.00065938,60]
[320966173,1711722690758,-150.0,0.00065941,60]
[320966174,1711722690766,-656.68518177,0.00065944,30]
[320966175,1711722690774,-150.0,0.00065953,60]
[320966176,1711722690782,-150.0,0.00065955,60]
[320966177,1711722690788,-152.11703282,0.00065967,120]
[320966178,1711722690794,-200.0,0.00065968,30]
[320966179,1711722690801,-4108.9578346,0.00065987,120]
[320966180,1711722690807,-200.0,0.00065987,5]
[320966181,1711722690813,-200.0,0.00065989,30]
[320966182,1711722690820,-234.52,0.0006599,15]
[320966183,1711722690829,-150.0,0.00065996,60]
[320966184,1711722690839,-150.0,0.00065999,60]
[320966185,1711722690849,-359.54503523,0.00066,120]
[320966186,1711722690858,-151.212305,0.00066,7]
[320966187,1711722690867,-1000.0,0.00066,120]
[320966188,1711722690877,-218.0,0.00066,120]
[320966189,1711722690886,-301.851341,0.00066,120]
[320966190,1711722690895,-150.0,0.00066,16]
[320966191,1711722690905,-150.0,0.00066,16]
[320966192,1711722690913,-401.0,0.00066,120]
[320966193,1711722690922,-200.0,0.00066009,30]
[320966194,1711722690931,-150.0,0.00066026,60]
[320966195,1711722690940,-200.0,0.0006603,30]
[320966196,1711722690949,-200.0,0.00066042,30]
[320966197,1711722690958,-25000.0,0.00066044,35]
[320966198,1711722690967,-10756.89608974,0.00066044,35]
[320966199,1711722690976,-376.5366058,0.00066044,35]
[320966200,1711722690985,-885.62792818,0.00066044,35]
[320966201,1711722690995,-1032.42814975,0.00066044,35]
[320966202,1711722691005,-150.0,0.00066044,120]
[320966203,1711722691013,-200.0,0.00066053,30]
[320966204,1711722691023,-150.0,0.00066057,60]
[320966205,1711722691032,-150.0,0.00066063,60]
[320966206,1711722691041,-200.0,0.00066065,30]
[320966207,1711722691050,-150.0,0.00066073,60]
[320966208,1711722691059,-150.0,0.00066076,60]
[320966209,1711722691069,-153.33171327,0.00066076,120]
[320966210,1711722691081,-1500.0,0.00066078,60]
[320966211,1711722691090,-150.0,0.00066078,60]
[320966212,1711722691099,-243.27777778,0.00066082,120]
[320966213,1711722691109,-150.0,0.00066105,60]
[320966214,1711722691118,-1500.0,0.00066107,60]
[320966215,1711722691127,-151.0,0.0006611,120]
[320966216,1711722691136,-800.0,0.0006611,120]
[320966217,1711722691145,-1500.0,0.00066118,60]
[320966218,1711722691156,-150.0,0.0006612,60]
[320966219,1711722691165,-150.0,0.00066121,60]
[320966220,1711722691174,-150.0,0.00066128,60]
[320966221,1711722691183,-150.0,0.00066131,60]
[320966222,1711722691192,-152.11703282,0.00066144,120]
[320966223,1711722691344,-150.0,0.00066146,60]
[320966224,1711722691354,-150.0,0.00066155,60]
[320966225,1711722691363,-150.0,0.00066155,120]
[320966226,1711722691371,-150.0,0.00066159,60]
[320966227,1711722691380,-150.0,0.00066187,60]
[320966228,1711722691390,-150.0,0.00066188,60]
[320966229,1711722691399,-150.0,0.00066195,60]
[320966230,1711722691408,-150.0,0.00066196,60]
[320966231,1711722691417,-150.0,0.00066198,60]
[320966232,1711722691426,-307.68911322,0.00066208,60]
[320966233,1711722691435,-150.0,0.00066228,60]
[320966234,1711722691445,-150.0,0.0006623,60]
[320966235,1711722691455,-150.0,0.00066233,60]
[320966236,1711722691464,-150.0,0.00066239,60]
[320966237,1711722691473,-150.0,0.00066252,60]
[320966238,1711722691482,-150.0,0.00066266,120]
[320966239,1711722691491,-1678.7495,0.00066266,14]
[320966240,1711722691500,-2000.0,0.00066266,14]
[320966241,1711722691510,-303.12736747,0.00066291,60]
[320966242,1711722691519,-150.0,0.00066297,60]
[320966243,1711722691528,-155.22445225,0.000663,120]
[320966244,1711722691537,-155.22445225,0.000663,120]
[320966245,1711722691546,-155.22445225,0.000663,120]
[320966246,1711722691555,-155.22445225,0.000663,120]
[320966247,1711722691565,-155.22445225,0.000663,120]
[320966248,1711722691574,-155.22445225,0.000663,120]
[320966249,1711722691583,-155.22445225,0.000663,120]
[320966250,1711722691592,-155.22445225,0.000663,120]
[320966251,1711722691601,-155.22445225,0.000663,120]
[320966252,1711722691610,-155.22445225,0.000663,120]
[320966253,1711722691619,-155.22445225,0.000663,120]
[320966254,1711722691629,-155.22445225,0.000663,120]
[320966255,1711722691638,-155.22445225,0.000663,120]
[320966256,1711722691647,-155.22445225,0.000663,120]
[320966257,1711722691657,-155.22445225,0.000663,120]
[320966258,1711722691666,-155.22445225,0.000663,120]
[320966259,1711722691675,-155.22445225,0.000663,120]
[320966260,1711722691684,-155.22445225,0.000663,120]
[320966261,1711722691693,-155.22445225,0.000663,120]
[320966262,1711722691702,-155.72,0.000663,120]
[320966263,1711722691711,-439.10380722,0.000663,120]
[320966264,1711722691720,-439.10380722,0.000663,120]
[320966265,1711722691729,-439.10380722,0.000663,120]
[320966266,1711722691738,-439.10380722,0.000663,120]
[320966267,1711722691748,-439.10380722,0.000663,120]
[320966268,1711722691757,-439.10380722,0.000663,120]
[320966269,1711722691768,-439.10380722,0.000663,120]
[320966270,1711722691777,-439.10380722,0.000663,120]
[320966271,1711722691787,-439.10380722,0.000663,120]
[320966272,1711722691796,-439.10380722,0.000663,120]
[320966273,1711722691805,-439.10380722,0.000663,120]
[320966274,1711722691815,-439.10380722,0.000663,120]
[320966275,1711722691824,-439.10380722,0.000663,120]
[320966276,1711722691833,-439.10380722,0.000663,120]
[320966277,1711722691842,-439.10380722,0.000663,120]
[320966278,1711722691851,-439.10380722,0.000663,120]
[320966279,1711722691861,-439.10380722,0.000663,120]
[320966280,1711722691870,-439.10380722,0.000663,120]
[320966281,1711722691879,-439.10380722,0.000663,120]
[320966282,1711722691888,-439.6,0.000663,120]
[320966283,1711722691897,-150.0,0.000663,60]
[320966284,1711722691906,-183.64012444,0.000663,2]
[320966285,1711722691915,-150.0,0.00066311,60]
[320966286,1711722691924,-152.11703282,0.00066322,120]
[320966287,1711722691934,-900.0,0.00066325,90]
[320966288,1711722691942,-150.0,0.00066331,60]
[320966289,1711722691951,-150.0,0.00066338,60]
[320966290,1711722691960,-150.0,0.00066343,60]
[320966291,1711722691969,-151.4857083,0.00066346,120]
[320966292,1711722691978,-302.30794069,0.00066351,60]
[320966293,1711722691987,-150.0,0.00066369,60]
[320966294,1711722691996,-150.0,0.00066377,120]
[320966295,1711722692005,-150.0,0.00066381,60]
[320966296,1711722692014,-150.0,0.00066388,60]
[320966297,1711722692024,-6642.13923493,0.0006639,2]
[320966298,1711722692033,-300.0,0.00066394,60]
[320966299,1711722692042,-152.402122,0.00066399,120]
[320966300,1711722692051,-591484.60696774,0.000664,120]
[320966301,1711722692060,-150.0,0.000664,60]
[320966302,1711722692071,-401.0,0.000664,40]
[320966303,1711722692083,-150.0,0.00066416,60]
[320966304,1711722692092,-150.0,0.00066452,60]
[320966305,1711722692101,-150.0,0.00066469,60]
[320966306,1711722692110,-150.0,0.00066475,60]
[320966307,1711722692121,-150.0,0.00066485,60]
[320966308,1711722692130,-150.0,0.00066488,120]
[320966309,1711722692139,-611905.74491552,0.0006649,21]
[320966310,1711722692164,-1023.06,0.0005315,120]
[320966311,1711722692173,-3896.62527166,0.0006649,21]
[320966312,1711722692185,-1758.14977296,0.0006649,21]
[320966313,1711722692195,-1015.87869491,0.0006649,21]
[320966314,1711722692208,-4451.7425415,0.0006649,21]
[320966315,1711722692217,-151.0,0.0006649,120]
[320966316,1711722692226,-152.898674,0.0006649,120]
[320966317,1711722692235,-151.0,0.0006649,120]
[320966318,1711722692244,-151.0,0.0006649,120]
[320966319,1711722692254,-151.0,0.0006649,120]
[320966320,1711722692263,-151.0,0.0006649,120]
[320966321,1711722692273,-151.0,0.0006649,120]
[320966322,1711722692282,-151.94062,0.0006649,120]
[320966323,1711722692291,-151.0,0.0006649,120]
[320966324,1711722692300,-151.0,0.0006649,120]
[320966325,1711722692309,-151.0,0.0006649,120]
[320966326,1711722692318,-151.0,0.0006649,120]
[320966327,1711722692327,-151.0,0.0006649,7]
[320966328,1711722692336,-264.369939,0.0006649,7]
[320966329,1711722692345,-151.0,0.0006649,120]
[320966330,1711722692354,-151.0,0.0006649,120]
[320966331,1711722692363,-151.0,0.0006649,120]
[320966332,1711722692372,-151.0,0.0006649,120]
[320966333,1711722692381,-151.0,0.0006649,120]
[320966334,1711722692389,-151.0,0.0006649,120]
[320966335,1711722692399,-151.0,0.0006649,120]
[320966336,1711722692408,-151.0,0.0006649,14]
[320966337,1711722692417,-151.0,0.0006649,14]
[320966338,1711722692425,-151.0,0.0006649,120]
[320966339,1711722692434,-151.0,0.0006649,120]
[320966340,1711722692443,-151.0,0.0006649,120]
[320966341,1711722692452,-151.0,0.0006649,120]
[320966342,1711722692461,-151.0,0.0006649,120]
[320966343,1711722692470,-201.593565,0.0006649,120]
[320966344,1711722692479,-201.593565,0.0006649,120]
[320966345,1711722692488,-151.0,0.0006649,120]
[320966346,1711722692497,-151.0,0.0006649,120]
[320966347,1711722692507,-262.776931,0.0006649,30]
[320966348,1711722692515,-262.776931,0.0006649,30]
[320966349,1711722692525,-151.0,0.0006649,120]
[320966350,1711722692534,-151.0,0.0006649,120]
[320966351,1711722692543,-151.0,0.0006649,120]
[320966352,1711722692552,-151.0,0.0006649,120]
[320966353,1711722692561,-151.0,0.0006649,120]
[320966354,1711722692570,-151.0,0.0006649,120]
[320966355,1711722692579,-324.492113,0.0006649,120]
[320966356,1711722692588,-324.492113,0.0006649,120]
[320966357,1711722692598,-588.107038,0.0006649,120]
[320966358,1711722692607,-588.107038,0.0006649,120]
[320966359,1711722692616,-294.960875,0.0006649,120]
[320966360,1711722692625,-383.269207,0.0006649,120]
[320966361,1711722692634,-294.960875,0.0006649,120]
[320966362,1711722692643,-151.0,0.0006649,7]
[320966363,1711722692652,-383.269207,0.0006649,120]
[320966364,1711722692661,-528.59282772,0.0006649,120]
[320966365,1711722692680,-106.63302928,0.0006649,120]
[320966366,1711722692689,-635.225857,0.0006649,120]
[320966367,1711722692699,-151.0,0.0006649,120]
[320966368,1711722692708,-247.877888,0.0006649,120]
[320966369,1711722692718,-247.877888,0.0006649,120]
[320966370,1711722692727,-325.814409,0.0006649,60]
[320966371,1711722692736,-325.814409,0.0006649,60]
[320966372,1711722692745,-21.39609972,0.0006649,120]
[320966373,1711722692757,-129.60390028,0.0006649,120]
[320966374,1711722692768,-242.931224,0.0006649,120]
[320966375,1711722692777,-242.931224,0.0006649,120]
[320966376,1711722692786,-74.90777172,0.0006649,30]
[320966377,1711722692918,-202.545346,0.00042466,14]
[320966378,1711722692927,-600.0,0.000429,15]
[320966379,1711722692936,-202.545346,0.00043288,14]
[320966380,1711722692946,-500.0,0.00049863,120]
[320966381,1711722692955,-1758.36367043,0.00050495,30]
[320966382,1711722692963,-611.40103864,0.00053424,120]
[320966383,1711722692983,-406.24944498,0.00053424,120]
[320966384,1711722692996,-5.40951638,0.00053424,120]
[320966385,1711722693004,-475.18048762,0.00053698,120]
[320966386,1711722693056,-547.87951238,0.00053698,120]
[320966387,1711722693065,-1023.06,0.00053972,120]
[320966388,1711722693076,-1023.06,0.00054246,120]
[320966389,1711722693085,-1023.06,0.0005452,120]
[320966390,1711722693094,-1023.06,0.00054794,120]
[320966391,1711722693103,-1023.06,0.00055068,120]
[320966392,1711722693113,-582.618186,0.00055616,120]
[320966393,1711722693122,-151.0,0.00055616,120]
[320966394,1711722693131,-400.12961326,0.000639,120]
[320966395,1711722693140,-582.618186,0.00064,120]
[320966396,1711722693149,-88.17425628,0.0006649,30]
[320966397,1711722693160,-151.714026,0.0006649,120]
[320966398,1711722693171,-163.082028,0.0006649,30]
[320966399,1711722693180,-151.0,0.0006649,120]
[320966400,1711722693189,-151.0,0.0006649,120]
[320966401,1711722693198,-151.0,0.0006649,120]
[320966402,1711722693207,-151.0,0.0006649,120]
[320966403,1711722693216,-151.0,0.0006649,120]
[320966404,1711722693225,-151.0,0.0006649,120]
[320966405,1711722693234,-151.0,0.0006649,120]
[320966406,1711722693243,-151.0,0.0006649,120]
[320966407,1711722693253,-705.82843,0.0006649,120]
[320966408,1711722693263,-151.0,0.0006649,120]
[320966409,1711722693272,-705.82843,0.0006649,120]
[320966410,1711722693281,-151.0,0.0006649,120]
[320966411,1711722693290,-151.0,0.0006649,120]
[320966412,1711722693299,-151.0,0.0006649,120]
[320966413,1711722693308,-151.0,0.0006649,120]
[320966414,1711722693317,-151.0,0.0006649,120]
[320966415,1711722693325,-501.168452,0.0006649,120]
[320966416,1711722693334,-501.168452,0.0006649,120]
[320966417,1711722693343,-151.0,0.0006649,120]
[320966418,1711722693352,-297.605157,0.0006649,120]
[320966419,1711722693361,-151.0,0.0006649,120]
[320966420,1711722693370,-151.0,0.0006649,120]
[320966421,1711722693379,-151.0,0.0006649,120]
[320966422,1711722693388,-153.619198,0.0006649,120]
[320966423,1711722693397,-151.0,0.0006649,120]
[320966424,1711722693406,-151.0,0.0006649,120]
[320966425,1711722693415,-151.0,0.0006649,120]
[320966426,1711722693423,-238.688377,0.0006649,120]
[320966427,1711722693432,-151.0,0.0006649,120]
[320966428,1711722693441,-238.688377,0.0006649,120]
[320966429,1711722693449,-151.0,0.0006649,7]
[320966430,1711722693458,-151.0,0.0006649,120]
[320966431,1711722693467,-151.0,0.0006649,120]
[320966432,1711722693476,-151.0,0.0006649,120]
[320966433,1711722693485,-151.0,0.0006649,120]
[320966434,1711722693494,-151.0,0.0006649,30]
[320966435,1711722693503,-266.201358,0.0006649,120]
[320966436,1711722693513,-582.618186,0.0006649,120]
[320966437,1711722693522,-150.0,0.00066491,60]
[320966438,1711722693531,-150.0,0.00066499,60]
[320966439,1711722693540,-150.0,0.000665,40]
[320966440,1711722693549,-479.0,0.000665,50]
[320966441,1711722693558,-479.0,0.000665,50]
[320966442,1711722693566,-479.0,0.000665,50]
[320966443,1711722693575,-473.0,0.000665,40]
[320966444,1711722693584,-473.0,0.000665,40]
[320966445,1711722693594,-300.0,0.000665,44]
[320966446,1711722693603,-167.0,0.000665,50]
[320966447,1711722693612,-151.0,0.000665,7]
[320966448,1711722693622,-150.0,0.000665,60]
[320966449,1711722693632,-152.11703282,0.000665,120]
[320966450,1711722693641,-490.0,0.000665,40]
[320966451,1711722693651,-200.0,0.000665,40]
[320966452,1711722693660,-300.0,0.000665,120]
[320966453,1711722693670,-150.0,0.000665,16]
[320966454,1711722693680,-150.0,0.000665,16]
[320966455,1711722693689,-158.49334375,0.000665,120]
[320966456,1711722693698,-4383.02987368,0.000665,2]
[320966457,1711722693707,-150.72698386,0.000665,107]